[Event "Najdorf Memorial-B 2022"]
[Site "Warsaw"]
[Date "2022.07.09"]
[Round "1.1"]
[White "Pozniak, Yunna"]
[Black "Koziol, Pawel"]
[Result "0-1"]
[ECO "B22"]
[WhiteElo "1288"]
[BlackElo "1771"]
[Annotator "NA RC"]
[PlyCount "78"]
[EventDate "2022.07.09"]
[EventType "swiss"]
[EventCountry "POL"]
[SourceTitle "playchess.com"]
[Source "ChessBase"]
[SourceQuality "1"]
[TimeControl "40/5400+30:1800+30"]

1. e4 {[%emt 0:00:04]} c5 {[%emt 0:00:07]} 2. c3 {[%emt 0:00:13]} g6 {[%emt 0:02:32]} 3. d4 {[%emt 0:00:34]} cxd4 {[%emt 0:00:56]} 4. cxd4 {[%emt 0:00:20]} Bg7 {[%emt 0:01:06]} 5. Nf3 {[%emt 0:02:01]} d6 {[%emt 0:01:49]} 6. Bc4 {[%emt 0:02:56]} Nf6 {[%emt 0:00:44]} 7. Nc3 {[%emt 0:00:45]} O-O {[%emt 0:00:48]} 8. Bb3 {[%emt 0:04:47]} Bg4 {[%emt 0:06:13]} 9. h3 {[%emt 0:05:45]} Bxf3 {[%emt 0:00:35]} 10. Qxf3 {[%emt 0:00:26]} Nc6 {[%emt 0:00:12]} 11. Be3 {[%emt 0:01:03]} Nd7 {[%emt 0:02:02]} 12. Qd1 {[%emt 0:05:01]} Na5 {[%emt 0:02:35]} 13. O-O {[%emt 0:03:08]} Nb6 {[%emt 0:06:12]} 14. Rc1 {[%emt 0:05:11]} Nac4 {[%emt 0:01:38]} 15. Nd5 {[%emt 0:06:14]} Nxd5 {[%emt 0:03:09]} 16. Bxc4 {[%emt 0:00:24]} Nxe3 {[%emt 0:00:13]} 17. fxe3 {[%emt 0:00:05]} e6 {[%emt 0:02:14]} 18. Qb3 {[%emt 0:02:58]} Qe7 {[%emt 0:01:01]} 19. Rf2 {[%emt 0:03:04]} Bh6 {[%emt 0:03:14]} 20. Kh1 {[%emt 0:04:45]} Kh8 {[%emt 0:07:46]} 21. Rfc2 {[%emt 0:03:44]} Rac8 {[%emt 0:09:06]} 22. Be2 {[%emt 0:07:31]} Rxc2 {[%emt 0:00:30]} 23. Rxc2 {[%emt 0:04:25]} Qh4 24. Qd3 {[%emt 0:00:30]} Qg3 {[%emt 0:03:50]} 25. Rc3 {[%emt 0:03:14]} Qe1+ {[%emt 0:02:53]} 26. Kh2 {[%emt 0:00:15]} Bg5 {[%emt 0:00:56]} 27. Qd1 {[%emt 0:01:36]} Qh4 {[%emt 0:01:04]} 28. Bf3 Bxe3 29. g3 {[%emt 0:08:10]} Qh6 {[%emt 0:05:13]} 30. Rc7 {[%emt 0:02:42]} Qg7 31. Rd7 Bxd4 {[%emt 0:03:43]} 32. Rxb7 {[%emt 0:06:29]} Bb6 {[%emt 0:02:17]} 33. Qd2 {[%emt 0:02:06]} Qe5 {[%emt 0:01:46]} 34. Rd7 {[%emt 0:01:40]} Bd4 {[%emt 0:03:40]} 35. Rb7 {[%emt 0:00:34]} Kg7 {[%emt 0:00:48]} 36. Rb3 {[%emt 0:01:16]} Qc5 {[%emt 0:03:18]} 37. Rd3 {[%emt 0:02:24]} e5 {[%emt 0:00:24]} 38. Bg2 {[%emt 0:00:50]} Rc8 {[%emt 0:01:01]} 39. Rf3 {[%emt 0:01:46]} h6 {[%emt 0:01:09]} 0-1

[Event "Najdorf Memorial-B 2022"]
[Site "Warsaw"]
[Date "2022.07.09"]
[Round "1.2"]
[White "Nawalaniec, Adam"]
[Black "Pancewicz, Mateusz"]
[Result "1-0"]
[ECO "B10"]
[WhiteElo "1768"]
[BlackElo "1287"]
[Annotator "NA RC"]
[PlyCount "59"]
[EventDate "2022.07.09"]
[EventType "swiss"]
[EventCountry "POL"]
[SourceTitle "playchess.com"]
[Source "ChessBase"]
[SourceQuality "1"]
[TimeControl "40/5400+30:1800+30"]

1. e4 {[%emt 0:00:02]} c6 {[%emt 0:00:06]} 2. d3 {[%emt 0:00:04]} d5 {[%emt 0:00:26]} 3. Nd2 {[%emt 0:00:22]} e5 {[%emt 0:02:25]} 4. Ngf3 {[%emt 0:00:34]} Bd6 {[%emt 0:00:51]} 5. d4 {[%emt 0:00:58]} exd4 {[%emt 0:13:15]} 6. exd5 {[%emt 0:00:31]} c5 {[%emt 0:02:39]} 7. Ne4 {[%emt 0:02:58]} Nf6 {[%emt 0:21:35]} 8. Bg5 {[%emt 0:15:43]} O-O {[%emt 0:08:39]} 9. Bd3 {[%emt 0:08:02]} c4 {[%emt 0:13:09]} 10. Bxc4 {[%emt 0:07:02]} Re8 {[%emt 0:02:32]} 11. Qe2 {[%emt 0:09:51]} Qa5+ {[%emt 0:09:39]} 12. Bd2 {[%emt 0:02:07]} Qd8 {[%emt 0:01:51]} 13. Nfg5 {[%emt 0:08:23]} Nxe4 {[%emt 0:04:58]} 14. Nxe4 {[%emt 0:00:14]} f5 {[%emt 0:00:26]} 15. Bg5 {[%emt 0:00:59]} Qd7 {[%emt 0:01:59]} 16. Bb5 {[%emt 0:02:30]} Nc6 {[%emt 0:02:57]} 17. dxc6 {[%emt 0:02:18]} bxc6 {[%emt 0:02:11]} 18. Qc4+ {[%emt 0:01:29]} Kh8 {[%emt 0:02:03]} 19. Qxc6 {[%emt 0:00:38]} Rxe4+ {[%emt 0:00:26]} 20. Qxe4 {[%emt 0:00:21]} Qxb5 {[%emt 0:05:28]} 21. Qxa8 {[%emt 0:01:02]} Qe8+ {[%emt 0:00:43]} 22. Kd1 {[%emt 0:01:37]} f4 {[%emt 0:00:36]} 23. f3 {[%emt 0:01:57]} h6 {[%emt 0:00:24]} 24. Re1 {[%emt 0:00:38]} Qd7 {[%emt 0:00:59]} 25. Be7 {[%emt 0:02:46]} Bxe7 {[%emt 0:00:31]} 26. Rxe7 {[%emt 0:00:04]} Qxe7 {[%emt 0:00:07]} 27. Qxc8+ {[%emt 0:00:08]} Kh7 {[%emt 0:00:11]} 28. Qf5+ {[%emt 0:00:10]} Kh8 {[%emt 0:00:49]} 29. Qd3 {[%emt 0:02:20]} Qh4 {[%emt 0:00:35]} 30. Kd2 1-0

[Event "Najdorf Memorial-B 2022"]
[Site "Warsaw"]
[Date "2022.07.09"]
[Round "1.3"]
[White "Panikowski, Ksawery"]
[Black "Morczynski, Joachim"]
[Result "1-0"]
[ECO "B33"]
[WhiteElo "1286"]
[BlackElo "1762"]
[Annotator "NA RC"]
[PlyCount "66"]
[EventDate "2022.07.09"]
[EventType "swiss"]
[EventCountry "POL"]
[SourceTitle "playchess.com"]
[Source "ChessBase"]
[SourceQuality "1"]
[TimeControl "40/5400+30:1800+30"]

1. e4 {[%emt 0:00:01]} c5 {[%emt 0:00:05]} 2. Nf3 {[%emt 0:00:09]} Nc6 {[%emt 0:00:06]} 3. d4 {[%emt 0:01:03]} cxd4 {[%emt 0:00:05]} 4. Nxd4 {[%emt 0:00:06]} Nf6 {[%emt 0:00:04]} 5. Nc3 {[%emt 0:00:09]} e5 {[%emt 0:00:07]} 6. Ndb5 {[%emt 0:00:22]} d6 {[%emt 0:00:06]} 7. Bg5 {[%emt 0:00:30]} a6 {[%emt 0:00:05]} 8. Na3 {[%emt 0:00:29]} b5 {[%emt 0:00:06]} 9. Nd5 {[%emt 0:00:40]} Be7 {[%emt 0:00:06]} 10. Bxf6 {[%emt 0:00:42]} Bxf6 {[%emt 0:00:06]} 11. c3 {[%emt 0:00:43]} Bg5 {[%emt 0:00:51]} 12. Nc2 {[%emt 0:01:51]} O-O {[%emt 0:00:17]} 13. a4 {[%emt 0:01:12]} Rb8 {[%emt 0:01:55]} 14. Bd3 {[%emt 0:04:11]} Be6 {[%emt 0:00:36]} 15. axb5 {[%emt 0:02:19]} axb5 {[%emt 0:00:13]} 16. h4 {[%emt 0:05:54]} Bh6 {[%emt 0:02:34]} 17. g4 {[%emt 0:03:50]} g6 {[%emt 0:00:26]} 18. g5 {[%emt 0:02:33]} Bg7 {[%emt 0:00:21]} 19. Nce3 {[%emt 0:00:53]} Ne7 {[%emt 0:00:39]} 20. Nf6+ {[%emt 0:23:47]} Bxf6 {[%emt 0:00:37]} 21. gxf6 {[%emt 0:00:18]} Nc6 {[%emt 0:00:21]} 22. Ra6 {[%emt 0:00:36]} Qc8 {[%emt 0:01:34]} 23. Qa1 {[%emt 0:00:43]} b4 {[%emt 0:02:37]} 24. Qa4 {[%emt 0:09:45]} Bd7 {[%emt 0:07:05]} 25. Nd5 {[%emt 0:07:33]} bxc3 {[%emt 0:14:31]} 26. bxc3 {[%emt 0:00:56]} Rb2 {[%emt 0:38:50]} 27. Nb6 {[%emt 0:13:47]} Qb7 {[%emt 0:13:27]} 28. Nxd7 {[%emt 0:01:53]} Qxd7 {[%emt 0:00:11]} 29. Qxc6 {[%emt 0:01:01]} Qg4 {[%emt 0:00:10]} 30. Ra8 {[%emt 0:02:08]} Rbb8 {[%emt 0:01:10]} 31. Rxb8 {[%emt 0:00:47]} Rxb8 {[%emt 0:00:06]} 32. Qxd6 {[%emt 0:00:21]} Ra8 {[%emt 0:00:24]} 33. Bb1 {[%emt 0:03:46]} Qf3 {[%emt 0:00:43]} 1-0

[Event "Najdorf Memorial-B 2022"]
[Site "Warsaw"]
[Date "2022.07.09"]
[Round "1.4"]
[White "Mazurek, Jerzy"]
[Black "Kochanek, Tomasz"]
[Result "1-0"]
[ECO "A16"]
[WhiteElo "1752"]
[BlackElo "1285"]
[Annotator "NA RC"]
[PlyCount "41"]
[EventDate "2022.07.09"]
[EventType "swiss"]
[EventCountry "POL"]
[SourceTitle "playchess.com"]
[Source "ChessBase"]
[SourceQuality "1"]
[TimeControl "40/5400+30:1800+30"]

1. c4 {[%emt 0:00:04]} Nf6 {[%emt 0:00:15]} 2. Nc3 {[%emt 0:00:08]} g6 {[%emt 0:00:21]} 3. g3 {[%emt 0:00:07]} Bg7 {[%emt 0:00:08]} 4. Bg2 {[%emt 0:00:05]} O-O {[%emt 0:02:37]} 5. e4 {[%emt 0:00:06]} d6 {[%emt 0:00:13]} 6. Nge2 {[%emt 0:00:09]} c5 {[%emt 0:00:28]} 7. O-O {[%emt 0:00:14]} e5 {[%emt 0:02:06]} 8. d3 {[%emt 0:00:09]} Nc6 {[%emt 0:02:09]} 9. f4 {[%emt 0:00:19]} Bg4 {[%emt 0:07:29]} 10. h3 {[%emt 0:05:52]} Bd7 {[%emt 0:04:12]} 11. f5 {[%emt 0:05:32]} a6 {[%emt 0:02:24]} 12. g4 {[%emt 0:01:54]} Ne7 {[%emt 0:02:22]} 13. g5 {[%emt 0:00:45]} gxf5 {[%emt 0:18:14]} 14. gxf6 {[%emt 0:01:11]} Bxf6 {[%emt 0:00:34]} 15. exf5 {[%emt 0:09:12]} Nxf5 {[%emt 0:10:06]} 16. Ne4 {[%emt 0:07:08]} Kh8 {[%emt 0:05:17]} 17. N2g3 {[%emt 0:19:33]} Nxg3 {[%emt 0:18:51]} 18. Nxf6 {[%emt 0:11:19]} Nxf1 {[%emt 0:00:50]} 19. Qxf1 {[%emt 0:00:09]} Qc8 {[%emt 0:05:52]} 20. Nxd7 {[%emt 0:01:55]} Qxd7 {[%emt 0:00:21]} 21. Qf6+ {[%emt 0:00:11]} 1-0

[Event "Najdorf Memorial-B 2022"]
[Site "Warsaw"]
[Date "2022.07.09"]
[Round "1.5"]
[White "Ladon, Tymoteusz"]
[Black "Mazur, Wojciech"]
[Result "0-1"]
[ECO "B43"]
[WhiteElo "1284"]
[BlackElo "1750"]
[Annotator "NA RC"]
[PlyCount "58"]
[EventDate "2022.07.09"]
[EventType "swiss"]
[EventCountry "POL"]
[SourceTitle "playchess.com"]
[Source "ChessBase"]
[SourceQuality "1"]
[TimeControl "40/5400+30:1800+30"]

1. e4 {[%emt 0:00:03]} c5 {[%emt 0:00:05]} 2. Nf3 {[%emt 0:00:14]} e6 {[%emt 0:00:02]} 3. d4 {[%emt 0:00:32]} cxd4 {[%emt 0:00:01]} 4. Nxd4 {[%emt 0:00:26]} a6 {[%emt 0:00:02]} 5. Nc3 {[%emt 0:00:41]} Qc7 {[%emt 0:00:02]} 6. Be3 {[%emt 0:01:21]} Nc6 {[%emt 0:00:07]} 7. g3 {[%emt 0:01:29]} Nf6 {[%emt 0:01:17]} 8. Bg2 {[%emt 0:00:53]} Bb4 {[%emt 0:03:35]} 9. Qd2 {[%emt 0:02:34]} Na5 {[%emt 0:02:53]} 10. O-O {[%emt 0:02:35]} Nc4 {[%emt 0:04:19]} 11. Qe2 {[%emt 0:06:48]} Nxb2 {[%emt 0:03:15]} 12. Nd1 {[%emt 0:02:07]} Nc4 {[%emt 0:02:09]} 13. Rb1 {[%emt 0:01:33]} Ba5 {[%emt 0:07:09]} 14. Nb2 {[%emt 0:01:52]} Nxb2 {[%emt 0:11:05]} 15. Rxb2 {[%emt 0:00:14]} O-O {[%emt 0:01:41]} 16. f4 {[%emt 0:04:08]} d6 {[%emt 0:01:08]} 17. h4 {[%emt 0:04:46]} b5 {[%emt 0:02:48]} 18. e5 {[%emt 0:01:07]} Nd5 {[%emt 0:02:52]} 19. f5 {[%emt 0:02:48]} dxe5 {[%emt 0:04:10]} 20. Nb3 {[%emt 0:08:21]} Nxe3 {[%emt 0:07:54]} 21. Nxa5 {[%emt 0:04:11]} Nxf1 {[%emt 0:00:52]} 22. Bxa8 {[%emt 0:01:16]} Nxg3 {[%emt 0:00:38]} 23. Qf3 {[%emt 0:01:13]} Nxf5 {[%emt 0:00:34]} 24. Nb3 {[%emt 0:00:41]} Nxh4 {[%emt 0:04:31]} 25. Qf2 {[%emt 0:01:06]} Ng6 {[%emt 0:01:53]} 26. Bg2 {[%emt 0:00:40]} Nf4 {[%emt 0:01:31]} 27. Nc5 {[%emt 0:00:58]} Nxg2 {[%emt 0:03:24]} 28. Kxg2 {[%emt 0:00:15]} Bb7+ 29. Nxb7 {[%emt 0:00:28]} Qxb7+ {[%emt 0:00:13]} 0-1

[Event "Najdorf Memorial-B 2022"]
[Site "Warsaw"]
[Date "2022.07.09"]
[Round "1.6"]
[White "Poniewierski, Piotr"]
[Black "Golinski, Krzysztof"]
[Result "1-0"]
[ECO "A05"]
[WhiteElo "1747"]
[BlackElo "1283"]
[Annotator "NA RC"]
[PlyCount "56"]
[EventDate "2022.07.09"]
[EventType "swiss"]
[EventCountry "POL"]
[SourceTitle "playchess.com"]
[Source "ChessBase"]
[SourceQuality "1"]
[TimeControl "40/5400+30:1800+30"]

1. Nf3 {[%emt 0:00:05]} Nf6 {[%emt 0:00:30]} 2. c4 {[%emt 0:00:08]} b6 {[%emt 0:01:51]} 3. g3 {[%emt 0:00:57]} Bb7 {[%emt 0:00:35]} 4. Bg2 {[%emt 0:00:10]} e5 {[%emt 0:01:20]} 5. Nc3 {[%emt 0:01:05]} Bc5 {[%emt 0:01:45]} 6. O-O {[%emt 0:01:24]} Qe7 {[%emt 0:02:16]} 7. e3 {[%emt 0:05:37]} e4 {[%emt 0:02:23]} 8. Ng5 {[%emt 0:05:24]} h6 {[%emt 0:02:49]} 9. Nh3 {[%emt 0:00:10]} Nc6 {[%emt 0:01:27]} 10. Nf4 {[%emt 0:09:34]} Na5 {[%emt 0:14:37]} 11. d3 {[%emt 0:11:37]} exd3 {[%emt 0:02:37]} 12. Bxb7 {[%emt 0:01:12]} Nxb7 {[%emt 0:00:21]} 13. Qxd3 {[%emt 0:03:44]} c6 {[%emt 0:10:45]} 14. b3 {[%emt 0:04:42]} g5 {[%emt 0:05:57]} 15. Nfe2 {[%emt 0:00:45]} h5 {[%emt 0:03:55]} 16. Bb2 {[%emt 0:02:57]} Rh6 {[%emt 0:03:09]} 17. Nd4 {[%emt 0:03:10]} Bxd4 {[%emt 0:03:37]} 18. exd4 {[%emt 0:02:19]} O-O-O {[%emt 0:00:41]} 19. d5 {[%emt 0:02:22]} c5 {[%emt 0:03:56]} 20. Rae1 {[%emt 0:04:53]} Qf8 {[%emt 0:08:13]} 21. Qf5 {[%emt 0:03:45]} Nd6 {[%emt 0:03:46]} 22. Qxg5 {[%emt 0:01:24]} Rg6 {[%emt 0:01:27]} 23. Qf4 {[%emt 0:02:23]} Nfe8 {[%emt 0:04:39]} 24. Ne4 {[%emt 0:02:31]} Rg4 {[%emt 0:02:58]} 25. Nxd6+ {[%emt 0:01:08]} Nxd6 {[%emt 0:01:13]} 26. Qf3 {[%emt 0:02:36]} f5 {[%emt 0:02:56]} 27. Re5 {[%emt 0:06:55]} Qh6 28. Bc1 {[%emt 0:04:44]} Qf6 {[%emt 0:05:59]} 1-0

[Event "Najdorf Memorial-B 2022"]
[Site "Warsaw"]
[Date "2022.07.09"]
[Round "1.7"]
[White "Ryszka, Maciej"]
[Black "Michalowski, Patryk"]
[Result "0-1"]
[ECO "D37"]
[WhiteElo "1282"]
[BlackElo "1726"]
[Annotator "NA RC"]
[PlyCount "50"]
[EventDate "2022.07.09"]
[EventType "swiss"]
[EventCountry "POL"]
[SourceTitle "playchess.com"]
[Source "ChessBase"]
[SourceQuality "1"]
[TimeControl "40/5400+30:1800+30"]

1. d4 {[%emt 0:00:02]} d5 {[%emt 0:00:07]} 2. c4 {[%emt 0:00:02]} e6 {[%emt 0:00:07]} 3. Nc3 {[%emt 0:00:05]} Nf6 {[%emt 0:00:08]} 4. Nf3 {[%emt 0:00:03]} Nbd7 {[%emt 0:00:51]} 5. Bg5 {[%emt 0:00:17]} Be7 {[%emt 0:00:21]} 6. e3 {[%emt 0:00:15]} c6 {[%emt 0:00:16]} 7. Bd3 {[%emt 0:00:07]} O-O {[%emt 0:00:12]} 8. O-O {[%emt 0:00:06]} dxc4 {[%emt 0:00:55]} 9. Bxc4 {[%emt 0:00:03]} b5 {[%emt 0:00:55]} 10. Bd3 {[%emt 0:00:03]} a6 {[%emt 0:00:55]} 11. Rc1 {[%emt 0:00:10]} Bb7 {[%emt 0:00:28]} 12. a3 {[%emt 0:00:14]} c5 {[%emt 0:00:46]} 13. Re1 {[%emt 0:01:58]} Qb6 {[%emt 0:04:21]} 14. Bb1 {[%emt 0:04:14]} Rfe8 {[%emt 0:03:34]} 15. dxc5 {[%emt 0:01:22]} Nxc5 {[%emt 0:01:29]} 16. b4 {[%emt 0:00:11]} Nce4 {[%emt 0:08:08]} 17. Nxe4 {[%emt 0:00:27]} Nxe4 {[%emt 0:00:09]} 18. Bxe7 {[%emt 0:00:18]} Rxe7 {[%emt 0:00:08]} 19. Qc2 {[%emt 0:01:20]} Nf6 {[%emt 0:11:05]} 20. Ne5 {[%emt 0:01:37]} Rc8 {[%emt 0:08:49]} 21. Qe2 {[%emt 0:00:59]} Rec7 {[%emt 0:01:05]} 22. Nd3 {[%emt 0:01:35]} Rxc1 {[%emt 0:05:10]} 23. Rxc1 {[%emt 0:00:13]} Rxc1+ {[%emt 0:00:05]} 24. Nxc1 {[%emt 0:00:05]} Qc6 {[%emt 0:00:12]} 25. f3 {[%emt 0:02:09]} Qxc1+ {[%emt 0:00:09]} 0-1

[Event "Najdorf Memorial-B 2022"]
[Site "Warsaw"]
[Date "2022.07.09"]
[Round "1.8"]
[White "Nowak, Lukasz"]
[Black "Walewski, Szymon"]
[Result "1-0"]
[ECO "D30"]
[WhiteElo "2327"]
[BlackElo "1279"]
[Annotator "RC"]
[PlyCount "109"]
[EventDate "2022.07.09"]
[EventType "swiss"]
[EventCountry "POL"]
[SourceTitle "playchess.com"]
[Source "ChessBase"]
[SourceQuality "1"]
[TimeControl "40/5400+30:1800+30"]

1. d4 {[%emt 0:00:03]} d5 {[%emt 0:00:02]} 2. c4 {[%emt 0:00:10]} e6 {[%emt 0:00:23]} 3. Nf3 {[%emt 0:00:08]} Nc6 {[%emt 0:00:33]} 4. Bf4 {[%emt 0:01:59]} Nf6 {[%emt 0:00:13]} 5. e3 {[%emt 0:00:59]} Bd6 {[%emt 0:01:19]} 6. Bg5 {[%emt 0:00:41]} Bb4+ {[%emt 0:01:12]} 7. Nc3 {[%emt 0:03:15]} Bxc3+ {[%emt 0:00:54]} 8. bxc3 {[%emt 0:00:06]} h6 {[%emt 0:00:28]} 9. Bh4 {[%emt 0:00:08]} Bd7 {[%emt 0:00:41]} 10. cxd5 {[%emt 0:02:38]} exd5 {[%emt 0:01:05]} 11. Bd3 {[%emt 0:00:14]} Bg4 {[%emt 0:01:18]} 12. h3 {[%emt 0:01:19]} Bh5 {[%emt 0:01:03]} 13. g4 {[%emt 0:11:38]} Bg6 {[%emt 0:00:26]} 14. Bxg6 {[%emt 0:00:08]} fxg6 {[%emt 0:00:19]} 15. Qb1 {[%emt 0:06:04]} g5 {[%emt 0:04:00]} 16. Qg6+ {[%emt 0:02:07]} Kf8 {[%emt 0:01:33]} 17. Bg3 {[%emt 0:04:14]} Qe7 {[%emt 0:01:03]} 18. O-O {[%emt 0:03:20]} Qe4 {[%emt 0:01:24]} 19. Qxe4 {[%emt 0:00:18]} Nxe4 {[%emt 0:00:26]} 20. Bxc7 {[%emt 0:03:52]} Rc8 {[%emt 0:03:09]} 21. Bh2 {[%emt 0:03:30]} Nxc3 {[%emt 0:01:02]} 22. Ne5 {[%emt 0:02:25]} Nxe5 {[%emt 0:02:18]} 23. Bxe5 {[%emt 0:00:03]} Kf7 {[%emt 0:00:37]} 24. Kg2 {[%emt 0:04:30]} Ne4 {[%emt 0:01:31]} 25. Rfc1 {[%emt 0:18:24]} Rhf8 {[%emt 0:01:05]} 26. a4 {[%emt 0:09:29]} Kg8 {[%emt 0:01:19]} 27. Bg3 {[%emt 0:00:06]} Nd2 {[%emt 0:01:06]} 28. Rxc8 {[%emt 0:08:54]} Rxc8 {[%emt 0:00:13]} 29. Ra2 {[%emt 0:00:05]} Ne4 {[%emt 0:00:18]} 30. Be5 {[%emt 0:00:54]} Rc6 {[%emt 0:01:43]} 31. Rb2 {[%emt 0:00:51]} b6 {[%emt 0:01:23]} 32. Bb8 {[%emt 0:02:39]} a6 {[%emt 0:01:29]} 33. Ba7 {[%emt 0:04:15]} Nc3 {[%emt 0:01:14]} 34. Rxb6 {[%emt 0:00:14]} Rxb6 {[%emt 0:00:29]} 35. Bxb6 {[%emt 0:00:03]} Nxa4 {[%emt 0:00:11]} 36. Ba5 {[%emt 0:00:08]} Nb2 {[%emt 0:00:34]} 37. Bc3 {[%emt 0:01:49]} Nc4 {[%emt 0:00:33]} 38. Kf3 {[%emt 0:00:16]} a5 {[%emt 0:00:40]} 39. Ke2 {[%emt 0:00:22]} a4 {[%emt 0:01:34]} 40. Kd3 {[%emt 0:00:05]} Kf7 {[%emt 0:00:53]} 41. Bb4 {[%emt 0:33:36]} Ke6 {[%emt 0:32:51]} 42. Kc3 {[%emt 0:02:21]} Kd7 {[%emt 0:00:00]} 43. Bf8 {[%emt 0:00:00]} g6 {[%emt 0:00:00]} 44. Bxh6 {[%emt 0:00:00]} a3 {[%emt 0:00:00]} 45. Kb3 {[%emt 0:00:00]} Nd2+ {[%emt 0:00:00]} 46. Kxa3 {[%emt 0:00:00]} Ne4 {[%emt 0:00:00]} 47. f3 {[%emt 0:00:00]} Nf2 {[%emt 0:00:00]} 48. Bxg5 {[%emt 0:00:00]} Nxh3 {[%emt 0:00:00]} 49. Bh4 {[%emt 0:00:00]} g5 {[%emt 0:00:00]} 50. Bg3 {[%emt 0:00:00]} Ng1 {[%emt 0:00:00]} 51. f4 {[%emt 0:00:00]} Nf3 {[%emt 0:00:00]} 52. Kb4 {[%emt 0:00:00]} gxf4 {[%emt 0:00:00]} 53. exf4 {[%emt 0:00:00]} Nxd4 {[%emt 0:00:00]} 54. Kc5 {[%emt 0:00:00]} Ne2 {[%emt 0:00:00]} 55. Bh2 {[%emt 0:00:00]} 1-0

[Event "Najdorf Memorial-B 2022"]
[Site "Warsaw"]
[Date "2022.07.09"]
[Round "1.9"]
[White "Winiarski, Szymon"]
[Black "Szyszko, Jan"]
[Result "0-1"]
[ECO "A46"]
[WhiteElo "1278"]
[BlackElo "1706"]
[Annotator "NA RC"]
[PlyCount "45"]
[EventDate "2022.07.09"]
[EventType "swiss"]
[EventCountry "POL"]
[SourceTitle "playchess.com"]
[Source "ChessBase"]
[SourceQuality "1"]
[TimeControl "40/5400+30:1800+30"]

1. d4 {[%emt 0:00:03]} Nf6 {[%emt 0:00:07]} 2. Nf3 {[%emt 0:00:07]} d5 {[%emt 0:00:05]} 3. g3 {[%emt 0:00:31]} c5 {[%emt 0:00:14]} 4. Bg2 {[%emt 0:01:32]} cxd4 {[%emt 0:00:05]} 5. Nxd4 {[%emt 0:02:14]} e5 {[%emt 0:00:24]} 6. Nf3 {[%emt 0:01:52]} Nc6 {[%emt 0:00:17]} 7. O-O {[%emt 0:03:00]} h6 {[%emt 0:10:33]} 8. b3 {[%emt 0:07:10]} Be6 {[%emt 0:12:58]} 9. Bb2 {[%emt 0:04:22]} Bd6 {[%emt 0:00:04]} 10. Nbd2 {[%emt 0:08:53]} Qb6 {[%emt 0:04:20]} 11. e4 dxe4 {[%emt 0:04:05]} 12. Ne1 {[%emt 0:10:39]} e3 {[%emt 0:00:07]} 13. fxe3 {[%emt 0:11:13]} Qxe3+ {[%emt 0:00:12]} 14. Kh1 {[%emt 0:00:30]} O-O-O {[%emt 0:10:01]} 15. Rf3 {[%emt 0:06:26]} Qb6 {[%emt 0:01:11]} 16. Rb1 {[%emt 0:08:58]} Bg4 {[%emt 0:12:37]} 17. Nc4 {[%emt 0:05:35]} Qc7 {[%emt 0:00:04]} 18. Qc1 {[%emt 0:08:12]} Bxf3 {[%emt 0:00:12]} 19. Nxf3 {[%emt 0:00:44]} Rhe8 {[%emt 0:08:59]} 20. Nfd2 {[%emt 0:02:05]} Bc5 {[%emt 0:02:22]} 21. Qf1 {[%emt 0:03:13]} b5 {[%emt 0:14:17]} 22. Qf5+ {[%emt 0:04:59]} Kb8 {[%emt 0:03:18]} 23. Ne4 {[%emt 0:05:25]} 0-1

[Event "Najdorf Memorial-B 2022"]
[Site "Warsaw"]
[Date "2022.07.09"]
[Round "1.10"]
[White "Stefaniuk, Zbigniew"]
[Black "Dzierzgowska, Jagoda"]
[Result "1-0"]
[ECO "C09"]
[WhiteElo "1702"]
[BlackElo "1277"]
[Annotator "NA RC"]
[PlyCount "63"]
[EventDate "2022.07.09"]
[EventType "swiss"]
[EventCountry "POL"]
[SourceTitle "playchess.com"]
[Source "ChessBase"]
[SourceQuality "1"]
[TimeControl "40/5400+30:1800+30"]

1. e4 {[%emt 0:00:01]} e6 {[%emt 0:00:06]} 2. d4 {[%emt 0:00:09]} d5 {[%emt 0:00:09]} 3. Nd2 {[%emt 0:00:13]} c5 {[%emt 0:01:23]} 4. exd5 {[%emt 0:00:37]} exd5 {[%emt 0:00:11]} 5. Ngf3 {[%emt 0:00:27]} Nc6 {[%emt 0:01:14]} 6. Bb5 {[%emt 0:00:31]} Qb6 {[%emt 0:05:26]} 7. Qe2+ {[%emt 0:06:57]} Be7 {[%emt 0:05:21]} 8. dxc5 {[%emt 0:09:43]} Qxc5 {[%emt 0:01:12]} 9. Nb3 {[%emt 0:00:27]} Qd6 {[%emt 0:00:42]} 10. O-O {[%emt 0:11:20]} h6 {[%emt 0:02:57]} 11. Re1 {[%emt 0:09:33]} a6 {[%emt 0:01:13]} 12. Bxc6+ {[%emt 0:00:53]} bxc6 {[%emt 0:00:10]} 13. Be3 {[%emt 0:01:52]} Qe6 {[%emt 0:06:11]} 14. Bc5 {[%emt 0:12:21]} Qxe2 {[%emt 0:14:05]} 15. Rxe2 {[%emt 0:00:02]} Be6 {[%emt 0:03:36]} 16. Nfd4 {[%emt 0:01:09]} Kd7 {[%emt 0:00:43]} 17. Bxe7 {[%emt 0:04:09]} Nxe7 {[%emt 0:00:22]} 18. Nc5+ {[%emt 0:02:47]} Kd6 {[%emt 0:02:04]} 19. Ncxe6 {[%emt 0:00:41]} fxe6 {[%emt 0:00:52]} 20. Rxe6+ {[%emt 0:00:16]} Kd7 {[%emt 0:00:11]} 21. Rae1 {[%emt 0:00:19]} Rae8 {[%emt 0:00:34]} 22. Nb3 {[%emt 0:01:21]} Kd8 {[%emt 0:00:49]} 23. Nc5 {[%emt 0:03:58]} a5 {[%emt 0:01:26]} 24. Nb7+ {[%emt 0:03:35]} Kd7 {[%emt 0:00:11]} 25. Nd6 {[%emt 0:03:22]} Ref8 {[%emt 0:01:44]} 26. Rxe7+ {[%emt 0:01:14]} Kxd6 {[%emt 0:00:08]} 27. R1e6+ {[%emt 0:00:53]} Kc5 {[%emt 0:00:10]} 28. Rxg7 {[%emt 0:00:28]} Rb8 {[%emt 0:00:19]} 29. b3 {[%emt 0:02:19]} a4 {[%emt 0:00:26]} 30. Rgg6 {[%emt 0:01:36]} Rb6 {[%emt 0:00:29]} 31. Rxh6 {[%emt 0:01:03]} Rxh6 {[%emt 0:00:11]} 32. Rxh6 {[%emt 0:00:02]} 1-0